Cogmind - Beta 15 @@@ ROGUE MODE // 2025.06.07 @ 20:56:26 Player: CL-1C0 Result: Self-destructed Performance ------------- Evolutions (5) 2500 Regions Visited (15) 3000 Robots Destroyed (2) 10 Value Destroyed (115) 115 Prototype IDs (20) 400 Alien Tech Used (2) 400 Bonus (2125) 2125 TOTAL SCORE: 8550 Bonus ------- Pacifist 1325 Entered DSFs 500 Met Zhirov 300 Cogmind --------- Core Integrity 815/1000 Matter 290/300 Energy 410/410 System Corruption 2% Temperature Cool (0) Movement Walking (120) Location -5/Zhirov Parts ------- > --- POWER (2) -------- Light Neutrino Core Heavy Antimatter Reactor > --- PROPULSION (8) --- Advanced Myomer Leg Advanced Myomer Leg Advanced Myomer Leg Improved Flight Unit Cesium-ion Thruster Xenon Bombardment Thruster Xenon Bombardment Thruster > --- UTILITY (5) ------ Medium Storage Unit Improved Signal Interpreter Improved Transmission Jammer Improved System Shield > --- WEAPON (2) ------- Makeshift Sword > --- INVENTORY (10) --- Enhanced Nuclear Core Advanced Cooling System Advanced Energy Well (500) Trap Scanner Machine Analyzer Improved Sensor Array Advanced Melee Analysis Suite Particle Accelerator Advanced Hacking Suite Advanced Hacking Suite Peak State ------------ > --- POWER ------------ Light Neutrino Core Heavy Antimatter Reactor > --- PROPULSION ------- Advanced Myomer Leg Advanced Myomer Leg Advanced Myomer Leg Improved Flight Unit Cesium-ion Thruster Xenon Bombardment Thruster Xenon Bombardment Thruster > --- UTILITY ---------- Medium Storage Unit Improved Signal Interpreter Improved Transmission Jammer Experimental Core Shielding Improved System Shield > --- WEAPON ----------- Makeshift Sword > --- INVENTORY -------- Enhanced Nuclear Core Advanced Cooling System Trap Scanner Machine Analyzer Improved Sensor Array Advanced Melee Analysis Suite Particle Accelerator Advanced Hacking Suite [Rating: 84] Favorites ----------- Power Enhanced Nuclear Core Power Core Enhanced Nuclear Core Reactor Heavy Antimatter Reactor Propulsion Xenon Bombardment Thruster Treads Light Treads Leg Advanced Myomer Leg Hover Unit Aerolev Unit Flight Unit Xenon Bombardment Thruster Utility Improved Sensor Array Device Improved Sensor Array Storage Medium Storage Unit Processor Improved Signal Interpreter Hackware Improved System Shield Protection Experimental Core Shielding Weapon Mace Ballistic Gun Light Assault Rifle Special Weapon Remote Datajack Impact Weapon Mace Slashing Weapon Makeshift Sword Build | -11 -10 -9 -8 -8 -7 -7 -6 -6 -6 -6 -6 -5 -5 -5 -5 ------- Run | Yrd Mat Mat Mat Sto Fac DSF Fac Was Fac Low Low Fac Upp Upp Zhi Slots Evolved 10 | . . 2 2 . 2 . 2 . . . . 2 . . . Power 1 | . . . . . . . 1 . . . . . . . . Propulsion 6 | . . 1 1 . 1 . 1 . . . . 2 . . . Utility 3 | . . 1 1 . 1 . . . . . . . . . . Weapon . | . . . . . . . . . . . . . . . . Parts Attached 54 | 3 1 1 7 4 1 7 1 . 7 1 . 10 2 1 8 Power 5 | . . . 1 . . . . . 2 . . . 1 . 1 Engine . | . . . . . . . . . . . . . . . . Core 4 | . . . 1 . . . . . 2 . . . 1 . . Reactor 1 | . . . . . . . . . . . . . . . 1 Propulsion 22 | 2 . 1 5 2 . 4 1 . 1 . . 3 . . 3 Treads 2 | 2 . . . . . . . . . . . . . . . Leg 4 | . . 1 . . . . . . . . . . . . 3 Wheel . | . . . . . . . . . . . . . . . . Hover 2 | . . . 1 1 . . . . . . . . . . . Flight 14 | . . . 4 1 . 4 1 . 1 . . 3 . . . Utility 21 | . 1 . . 1 1 2 . . 3 1 . 7 1 . 4 Device 10 | . . . . . 1 1 . . 2 . . 4 1 . 1 Storage 2 | . . . . . . . . . . . . . . . 2 Processor 4 | . 1 . . . . 1 . . . 1 . 1 . . . Hackware 4 | . . . . 1 . . . . 1 . . 2 . . . Protection 1 | . . . . . . . . . . . . . . . 1 Artifact . | . . . . . . . . . . . . . . . . Weapon 6 | 1 . . 1 1 . 1 . . 1 . . . . 1 . Energy Gun . | . . . . . . . . . . . . . . . . Energy Cannon . | . . . . . . . . . . . . . . . . Ballistic Gun 2 | 1 . . 1 . . . . . . . . . . . . Ballistic Cannon . | . . . . . . . . . . . . . . . . Launcher . | . . . . . . . . . . . . . . . . Special Weapon 1 | . . . . . . . . . 1 . . . . . . Impact Weapon 2 | . . . . 1 . 1 . . . . . . . . . Slashing Weapon 1 | . . . . . . . . . . . . . . 1 . Piercing Weapon . | . . . . . . . . . . . . . . . . Special Melee Weapon . | . . . . . . . . . . . . . . . . Unidentified Prototypes 12 | . . . 2 . . . . . 1 . . 1 1 . 7 Parts Lost 14 | . . 3 . 1 . 2 1 . . . . 5 1 1 . Power 1 | . . . . . . 1 . . . . . . . . . Propulsion 9 | . . 3 . 1 . 1 . . . . . 2 1 1 . Utility 3 | . . . . . . . 1 . . . . 2 . . . Weapon 1 | . . . . . . . . . . . . 1 . . . Highest Loss Streak 3 | . . 3 . 1 . 2 1 . . . . 3 1 1 . To Critical Strikes . | . . . . . . . . . . . . . . . . Average Backups 4 | 4 . 2 2 3 4 4 4 4 5 5 5 4 4 4 8 Power . | 1 . . . . . . . . . . . . 1 . . Propulsion . | 2 . 1 . . . . 2 2 2 2 2 . . . . Utility 2 | . . 1 1 1 1 1 1 1 1 1 1 2 2 2 7 Weapon 1 | 1 . . 1 2 3 2 1 1 2 2 2 2 1 . . Tool/Special . | . . . . . . . . . . . . . . . . Unused Backups 9 | . . . . . . 3 . . 1 . . . . 1 4 Power . | . . . . . . . . . . . . . . . . Propulsion 1 | . . . . . . 1 . . . . . . . . . Utility 5 | . . . . . . 1 . . . . . . . . 4 Weapon 3 | . . . . . . 1 . . 1 . . . . 1 . Tool/Special . | . . . . . . . . . . . . . . . . Average Slot Usage (%) 78 | . 45 39 52 68 65 79 83 80 84 100 100 94 81 71 82 Core 7 | . . . 3 9 7 4 . . 1 13 13 11 11 11 6 Treads 1 | . 28 12 . . . . . . . . . . . . . Leg 1 | . . 4 . . . . . . . . . . . . 12 Hover 1 | . . . 3 13 7 5 . . . . . . . . . Flight 30 | . . . 29 22 23 27 40 40 40 40 40 42 34 24 23 Device 11 | . . . . . 3 11 13 13 18 20 20 12 17 17 11 Processor 6 | . 3 11 9 9 7 11 13 13 8 6 6 5 5 5 5 Hackware 4 | . . . . 6 7 7 3 . 2 6 6 8 5 5 5 Ballistic Gun 1 | . 14 11 7 . . . . . . . . . . . . Special Weapon 1 | . . . . . . . . . 3 6 6 4 . . . Impact Weapon 4 | . . . . 7 7 8 13 13 9 6 6 5 5 4 . Peak Build Rating 84 | 3 4 5 20 22 26 35 37 34 51 55 55 65 62 56 84 Average Rating 45 | 2 3 3 15 20 24 30 35 34 39 51 55 61 59 53 73 On Entrance 32 | 6 3 4 3 17 22 26 34 34 34 51 55 55 62 56 54 Naked Turns . | . . . . . . . . . . . . . . . . Heaviest Build 42 | 1 1 1 10 9 10 12 7 7 25 25 25 25 24 22 42 Greatest Support 90 | 3 3 3 10 15 15 15 15 33 33 33 33 44 34 28 90 Greatest Overweight (x) 1 | . . . . . . 1 . . . . . . . . . Average Overweight (x) . | . . . . . . . . . . . . . . . . Largest Inventory Capacity 10 | 5 5 5 5 5 5 5 5 5 5 5 5 5 5 5 10 Average Capacity 5 | 5 5 5 5 5 5 5 5 5 5 5 5 5 5 5 8 Most Carried 10 | 4 2 5 4 4 5 5 4 5 5 5 5 5 5 5 10 Average Carried 4 | 2 . 2 2 3 4 4 4 4 4 5 5 4 4 4 8 Final Capacity 10 | 5 5 5 5 5 5 5 5 5 5 5 5 5 5 5 10 Final Carried 10 | . 2 5 3 4 5 5 4 5 5 5 5 5 4 5 10 Class Distribution -------------------- 53% | Sprinter 35% | Mutant 11% | Hacker-Sprinter Dominant Class ---------------- Mutant | -10/Materials Mutant | -9/Materials Mutant | -8/Materials Mutant | -8/Storage Sprinter | -7/Factory Mutant | -7/DSF Sprinter | -6/Factory Sprinter | -6/Waste Mutant | -6/Factory Sprinter | -6/Lower Caves Sprinter | -6/Lower Caves Hacker-Sprinter | -5/Factory Sprinter | -5/Upper Caves Sprinter | -5/Upper Caves Mutant | -5/Zhirov Resources | -11 -10 -9 -8 -8 -7 -7 -6 -6 -6 -6 -6 -5 -5 -5 -5 ----------- Run | Yrd Mat Mat Mat Sto Fac DSF Fac Was Fac Low Low Fac Upp Upp Zhi Matter Collected 765 | 200 . . . 120 . . . . 153 29 . . 133 20 110 Remotely . | . . . . . . . . . . . . . . . . Salvage Created 401 | . . . . . . . . . 153 . . . . . 248 Parts 13 | . . . . . . . . . 10 . . . . . 3 Haulers Intercepted 1 | . . . . . . . . . 1 . . . . . . Recyclers Shooed . | . . . . . . . . . . . . . . . . Parts Field Recycled . | . . . . . . . . . . . . . . . . Retrieved Matter . | . . . . . . . . . . . . . . . . Parts Self-Destructed 3 | . . . . . . . . . . . . . . . 3 Prevented . | . . . . . . . . . . . . . . . . Kills | -11 -10 -9 -8 -8 -7 -7 -6 -6 -6 -6 -6 -5 -5 -5 -5 ------- Run | Yrd Mat Mat Mat Sto Fac DSF Fac Was Fac Low Low Fac Upp Upp Zhi Combat Hostiles Destroyed 1 | . . . . . . . . . 1 . . . . . . Melee 1 | . . . . . . . . . 1 . . . . . . Classes Destroyed 2 | . . . . . . . . . 2 . . . . . . Hauler 1 | . . . . . . . . . 1 . . . . . . Programmer 1 | . . . . . . . . . 1 . . . . . . Best Kill Streak 1 | . . . . . . . . . 1 . . . . . . Combat Bots Only 1 | . . . . . . . . . 1 . . . . . . Max Kills in Single Turn 1 | . . . . . . . . . 1 . . . . . . Gunslinging . | . . . . . . . . . . . . . . . . Exploded . | . . . . . . . . . . . . . . . . Melee 1 | . . . . . . . . . 1 . . . . . . Uniques/NPCs Destroyed . | . . . . . . . . . . . . . . . . Combat | -11 -10 -9 -8 -8 -7 -7 -6 -6 -6 -6 -6 -5 -5 -5 -5 -------- Run | Yrd Mat Mat Mat Sto Fac DSF Fac Was Fac Low Low Fac Upp Upp Zhi Hostile Shots Fired 264 | . 15 81 6 19 . 1 17 . 17 17 15 53 9 6 8 Missed 115 | . 6 28 4 6 . . 3 . 11 14 9 27 5 2 . Hits 149 | . 9 53 2 13 . 1 14 . 6 3 6 26 4 4 8 Melee 2 | . . 1 1 . . . . . . . . . . . . Projectile 147 | . 9 52 1 13 . 1 14 . 6 3 6 26 4 4 8 Critical Strikes 4 | . . . 1 1 . 1 . . 1 . . . . . . Damage Taken 2142 | . 93 569 50 185 . 50 178 . 92 58 85 478 45 79 180 Core 580 | . 17 210 17 55 . . 55 . 31 22 49 85 . 39 . Absorbed by Shields 38 | . . . . . . . 38 . . . . . . . . Core Remaining (%) 84 | 100 93 47 . 86 . 100 . . . . 81 . . . . Volleys Fired 1 | . . . . . . . . . 1 . . . . . . Largest 1 | . . . . . . . . . 1 . . . . . . Hottest 5 | . . . . . . . . . 5 . . . . . . Shots Fired 1 | . . . . . . . . . 1 . . . . . . Gun . | . . . . . . . . . . . . . . . . Cannon . | . . . . . . . . . . . . . . . . Launcher . | . . . . . . . . . . . . . . . . Special 1 | . . . . . . . . . 1 . . . . . . Kinetic . | . . . . . . . . . . . . . . . . Thermal . | . . . . . . . . . . . . . . . . Explosive . | . . . . . . . . . . . . . . . . Electromagnetic . | . . . . . . . . . . . . . . . . Robot Hit Streak 1 | . . . . . . . . . 1 . . . . . . Robot Miss Streak . | . . . . . . . . . . . . . . . . Penetration Max . | . . . . . . . . . . . . . . . . Secondary Targets . | . . . . . . . . . . . . . . . . Shots Hit Robots 14 | . . . . 2 . . . . 6 . . . . . 6 Core Hits 4 | . . . . . . . . . 2 . . . . . 2 Critical Kills 1 | . . . . . . . . . 1 . . . . . . Critical Parts Destroyed 1 | . . . . . . . . . 1 . . . . . . Critical Strikes 2 | . . . . . . . . . 2 . . . . . . Smash 2 | . . . . . . . . . 2 . . . . . . Melee Attacks 60 | . . . . 15 2 . . . 7 3 1 16 3 7 6 Impact 53 | . . . . 15 2 . . . 7 3 1 16 3 6 . Slashing 7 | . . . . . . . . . . . . . . 1 6 Piercing . | . . . . . . . . . . . . . . . . Sneak Attacks 4 | . . . . 2 . . . . 1 . . . . . 1 Combat Hostiles . | . . . . . . . . . . . . . . . . Follow-up Attacks . | . . . . . . . . . . . . . . . . Damage Inflicted 800 | . . . . 95 . . . . 254 . . . . . 451 Guns . | . . . . . . . . . . . . . . . . Cannons . | . . . . . . . . . . . . . . . . Explosions . | . . . . . . . . . . . . . . . . Melee 800 | . . . . 95 . . . . 254 . . . . . 451 Ramming . | . . . . . . . . . . . . . . . . Kinetic . | . . . . . . . . . . . . . . . . Thermal . | . . . . . . . . . . . . . . . . Explosive . | . . . . . . . . . . . . . . . . Electromagnetic . | . . . . . . . . . . . . . . . . Impact 349 | . . . . 95 . . . . 254 . . . . . . Slashing 451 | . . . . . . . . . . . . . . . 451 Piercing . | . . . . . . . . . . . . . . . . Highest Corruption 6 | . . . . . . . . 5 5 5 5 6 6 . 2 Average Corruption 4 | . . . . . . . . 5 5 5 5 5 3 . 1 Corruption Purged 6 | . . . . . . . . . . . . . 6 . . Corruption Blocked . | . . . . . . . . . . . . . . . . Effects 14 | . . . . . . . . . 3 2 . 8 1 . . Message Errors 3 | . . . . . . . . . 1 . . 2 . . . Matter Fused 2 | . . . . . . . . . 1 . . 1 . . . Heat Flow Errors 2 | . . . . . . . . . 1 . . 1 . . . Energy Discharges 3 | . . . . . . . . . . 1 . 1 1 . . Parts Rejected 1 | . . . . . . . . . . 1 . . . . . Data Loss (minor) 2 | . . . . . . . . . . . . 2 . . . Alerts 1 | . . . . . . . . . . . . 1 . . . Overload Shots . | . . . . . . . . . . . . . . . . Overflow Damage 232 | . . . . . . . . . 37 . . . . . 195 Projectiles . | . . . . . . . . . . . . . . . . Explosions . | . . . . . . . . . . . . . . . . Melee 232 | . . . . . . . . . 37 . . . . . 195 Knockbacks 3 | . . . . . . . . . 3 . . . . . . Impact 3 | . . . . . . . . . 3 . . . . . . Kinetic . | . . . . . . . . . . . . . . . . Secondary . | . . . . . . . . . . . . . . . . Self-Inflicted Damage . | . . . . . . . . . . . . . . . . Shots . | . . . . . . . . . . . . . . . . Rammed 1 | . 1 . . . . . . . . . . . . . . Targets Rammed 1 | . 1 . . . . . . . . . . . . . . Kicked . | . . . . . . . . . . . . . . . . Crushed . | . . . . . . . . . . . . . . . . Highest Temperature 292 | . . . . 9 . . . . . 5 2 292 . . . Average Temperature 118 | . . . . 9 . . . . . 5 2 124 . . . Received Heat Transfer 321 | . 33 63 9 63 . . . . . 18 39 60 . 18 18 Effects 4 | . . . . . . . . . . . . 4 . . . Interference 4 | . . . . . . . . . . . . 4 . . . Siege Activations . | . . . . . . . . . . . . . . . . Martial Activations . | . . . . . . . . . . . . . . . . Shielding Activations . | . . . . . . . . . . . . . . . . Robots Disrupted . | . . . . . . . . . . . . . . . . Combat Hostiles . | . . . . . . . . . . . . . . . . Robots Corrupted . | . . . . . . . . . . . . . . . . Combat Hostiles . | . . . . . . . . . . . . . . . . Parts Fried . | . . . . . . . . . . . . . . . . Impact Corruptions 2 | . . . . . . . . . 2 . . . . . . Robots Melted . | . . . . . . . . . . . . . . . . Combat Hostiles . | . . . . . . . . . . . . . . . . Parts Melted . | . . . . . . . . . . . . . . . . Heat Transferred . | . . . . . . . . . . . . . . . . Parts Sabotaged . | . . . . . . . . . . . . . . . . Parts Stolen . | . . . . . . . . . . . . . . . . Parts Stripped . | . . . . . . . . . . . . . . . . Power Chain Reactions . | . . . . . . . . . . . . . . . . Alert | -11 -10 -9 -8 -8 -7 -7 -6 -6 -6 -6 -6 -5 -5 -5 -5 ------- Run | Yrd Mat Mat Mat Sto Fac DSF Fac Was Fac Low Low Fac Upp Upp Zhi Maximum Alert Level 1 | . . . . . . . . . . . . 1 . . . Low Security (%) 80 | 100 100 100 100 100 100 100 100 100 100 . . 38 . . . Level 1 19 | . . . . . . . . . . . . 61 . . . Level 2 . | . . . . . . . . . . . . . . . . Level 3 . | . . . . . . . . . . . . . . . . Level 4 . | . . . . . . . . . . . . . . . . Level 5 . | . . . . . . . . . . . . . . . . High Security . | . . . . . . . . . . . . . . . . Max Security . | . . . . . . . . . . . . . . . . Peak Influence 394 | . 50 30 8 22 7 15 45 15 30 . . 394 . . . Initial 16 | . . 16 8 . 7 . 7 15 3 . . 1 . . . Average 65 | . 15 10 2 11 4 3 6 12 11 . . 182 . . . Influence Increases 977 | . 60 30 . 66 1 15 45 . 53 15 . 557 75 45 15 Destroy 0b10 Robot/C 20 | . . . . . . . . . 20 . . . . . . Destroy 0b10 Robot/NC 20 | . . . . . . . . . 5 . . . . . 15 Destroy Leader 12 | . . . . . . . . . 12 . . . . . . Successful Hack 23 | . . . . 15 . . . . . . . 8 . . . Disable Machine 60 | . . . . 45 . . . . . . . 15 . . . Destroy Structure 32 | . . . . 6 1 . . . 1 . . 24 . . . Partial Spotted 45 | . 15 . . . . . . . . . . 30 . . . Lose Combat Pursuer 765 | . 45 30 . . . 15 45 . 15 15 . 480 75 45 . Influence Decreases 977 | . 20 50 20 50 16 1 15 40 45 23 2 172 275 106 142 Entered New Map 403 | . . 24 12 . 9 1 8 30 2 5 2 2 145 36 127 Time Decay 481 | . 20 16 8 40 7 . . 10 43 18 . 124 120 60 15 Lost Part 93 | . . 10 . 10 . . 7 . . . . 46 10 10 . Squads Dispatched 7 | . 1 . . 1 . . . . 2 . . 3 . . . Investigation 2 | . 1 . . . . . . . 1 . . . . . . Extermination 1 | . . . . . . . . . . . . 1 . . . Reinforcement 4 | . . . . 1 . . . . 1 . . 2 . . . Assault . | . . . . . . . . . . . . . . . . Garrison . | . . . . . . . . . . . . . . . . Intercept . | . . . . . . . . . . . . . . . . Searches Triggered . | . . . . . . . . . . . . . . . . Construction Impeded . | . . . . . . . . . . . . . . . . Haulers Reinforced . | . . . . . . . . . . . . . . . . Active Scanning Responses . | . . . . . . . . . . . . . . . . Cargo Convoy Interrupts . | . . . . . . . . . . . . . . . . Stealth | -11 -10 -9 -8 -8 -7 -7 -6 -6 -6 -6 -6 -5 -5 -5 -5 --------- Run | Yrd Mat Mat Mat Sto Fac DSF Fac Was Fac Low Low Fac Upp Upp Zhi Distress Signals 9 | . 1 1 . 2 . . . . 1 . . 4 . . . Communications Jammed 6 | . . . . . . . . . . . . 6 . . . Distress Signals 6 | . . . . . . . . . . . . 6 . . . Times Spotted 112 | . 10 14 5 8 . 1 4 5 6 4 3 39 6 3 4 Peak Tracking Total 13 | . 6 12 5 8 . 1 3 6 4 4 3 13 5 3 3 Tactical Retreats 19 | . 2 1 . . . 1 1 . 1 1 . 8 1 3 . Traps | -11 -10 -9 -8 -8 -7 -7 -6 -6 -6 -6 -6 -5 -5 -5 -5 ------- Run | Yrd Mat Mat Mat Sto Fac DSF Fac Was Fac Low Low Fac Upp Upp Zhi Traps Triggered 3 | . . . . . . . 2 . 1 . . . . . . Indirectly . | . . . . . . . . . . . . . . . . Trap Hack Attempts . | . . . . . . . . . . . . . . . . Triggered . | . . . . . . . . . . . . . . . . Disarmed . | . . . . . . . . . . . . . . . . Reprogrammed . | . . . . . . . . . . . . . . . . Reused . | . . . . . . . . . . . . . . . . Traps Extracted . | . . . . . . . . . . . . . . . . Installed . | . . . . . . . . . . . . . . . . Triggered . | . . . . . . . . . . . . . . . . Machines | -11 -10 -9 -8 -8 -7 -7 -6 -6 -6 -6 -6 -5 -5 -5 -5 ---------- Run | Yrd Mat Mat Mat Sto Fac DSF Fac Was Fac Low Low Fac Upp Upp Zhi Machines Disabled 4 | . . . . 3 . . . . . . . 1 . . . Max in Single Turn 1 | . . . . 1 . . . . . . . 1 . . . Machines Repaired . | . . . . . . . . . . . . . . . . Machines Dismantled . | . . . . . . . . . . . . . . . . Machines Sabotaged . | . . . . . . . . . . . . . . . . Overloaded Fab Kills . | . . . . . . . . . . . . . . . . Hacking | -11 -10 -9 -8 -8 -7 -7 -6 -6 -6 -6 -6 -5 -5 -5 -5 --------- Run | Yrd Mat Mat Mat Sto Fac DSF Fac Was Fac Low Low Fac Upp Upp Zhi Machines Accessed 16 | . 3 . . 3 1 . . . 1 . . 2 . . 6 Terminals 9 | . 2 . . 3 1 . . . 1 . . 2 . . . Fabricators . | . . . . . . . . . . . . . . . . Repair Stations . | . . . . . . . . . . . . . . . . Recycling Units 1 | . 1 . . . . . . . . . . . . . . Scanalyzers . | . . . . . . . . . . . . . . . . Garrison Access . | . . . . . . . . . . . . . . . . Total Hacks 42 | . 6 . . 8 1 . . . 2 . . 6 . . 19 Successful 28 | . 2 . . 3 1 . . . . . . 3 . . 19 Failed 14 | . 4 . . 5 . . . . 2 . . 3 . . . Catastrophic . | . . . . . . . . . . . . . . . . Database Lockouts . | . . . . . . . . . . . . . . . . Manual 9 | . 2 . . . . . . . 2 . . 5 . . . Terminals 21 | . 4 . . 8 1 . . . 2 . . 6 . . . Fabricators . | . . . . . . . . . . . . . . . . Repair Stations . | . . . . . . . . . . . . . . . . Recycling Units 2 | . 2 . . . . . . . . . . . . . . Scanalyzers . | . . . . . . . . . . . . . . . . Garrison Access . | . . . . . . . . . . . . . . . . Terminal Hacks 25 | . . . . 3 1 . . . . . . 2 . . 19 Record 7 | . . . . . . . . . . . . . . . 7 Part Schematic 4 | . . . . . . . . . . . . . . . 4 Robot Analysis 4 | . . . . . . . . . . . . . . . 4 Prototype ID Bank 4 | . . . . . . . . . . . . . . . 4 Open Door 1 | . . . . 1 . . . . . . . . . . . Open DSF 1 | . . . . . 1 . . . . . . . . . . Level Access Points 1 | . . . . 1 . . . . . . . . . . . Branch Access Points 1 | . . . . . . . . . . . . 1 . . . Emergency Access Points 1 | . . . . . . . . . . . . 1 . . . Zone Layout 1 | . . . . 1 . . . . . . . . . . . Fabricator Hacks . | . . . . . . . . . . . . . . . . Repair Station Hacks . | . . . . . . . . . . . . . . . . Recycling Unit Hacks 1 | . 1 . . . . . . . . . . . . . . Retrieve Components 1 | . 1 . . . . . . . . . . . . . . Scanalyzer . | . . . . . . . . . . . . . . . . Garrison Access Hacks . | . . . . . . . . . . . . . . . . Unauthorized Hacks 2 | . 1 . . . . . . . . . . 1 . . . Terminals 2 | . 1 . . . . . . . . . . 1 . . . Operators 1 | . . . . . . . . . . . . 1 . . . Sabotage 1 | . 1 . . . . . . . . . . . . . . Fabricators . | . . . . . . . . . . . . . . . . Repair Stations . | . . . . . . . . . . . . . . . . Recycling Units . | . . . . . . . . . . . . . . . . Scanalyzers . | . . . . . . . . . . . . . . . . Garrison Access . | . . . . . . . . . . . . . . . . Data Cores Recovered . | . . . . . . . . . . . . . . . . Used . | . . . . . . . . . . . . . . . . Hacking Detections 7 | . 2 . . 2 . . . . 1 . . 2 . . . Full Trace Events . | . . . . . . . . . . . . . . . . Feedback Events . | . . . . . . . . . . . . . . . . Feedback Blocked . | . . . . . . . . . . . . . . . . Robot Schematics Acquired . | . . . . . . . . . . . . . . . . Robots Built . | . . . . . . . . . . . . . . . . Authchips . | . . . . . . . . . . . . . . . . Time . | . . . . . . . . . . . . . . . . Total Robot Build Rating . | . . . . . . . . . . . . . . . . Part Schematics Acquired 4 | . . . . . . . . . . . . . . . 4 Parts Built . | . . . . . . . . . . . . . . . . Authchips . | . . . . . . . . . . . . . . . . Time . | . . . . . . . . . . . . . . . . Total Part Build Rating . | . . . . . . . . . . . . . . . . Parts Repaired . | . . . . . . . . . . . . . . . . Time . | . . . . . . . . . . . . . . . . Parts Recycled . | . . . . . . . . . . . . . . . . Recycled Matter . | . . . . . . . . . . . . . . . . Retrieved Matter . | . . . . . . . . . . . . . . . . Retrieved Components 3 | . 3 . . . . . . . . . . . . . . Parts Scanalyzed . | . . . . . . . . . . . . . . . . Part Schematics Acquired . | . . . . . . . . . . . . . . . . Parts Damaged . | . . . . . . . . . . . . . . . . Bothacking | -11 -10 -9 -8 -8 -7 -7 -6 -6 -6 -6 -6 -5 -5 -5 -5 ------------ Run | Yrd Mat Mat Mat Sto Fac DSF Fac Was Fac Low Low Fac Upp Upp Zhi Used RIF Installer . | . . . . . . . . . . . . . . . . Robots Hacked . | . . . . . . . . . . . . . . . . Non-combat . | . . . . . . . . . . . . . . . . Combat . | . . . . . . . . . . . . . . . . Robot Hacks Applied . | . . . . . . . . . . . . . . . . Relay Couplers Released . | . . . . . . . . . . . . . . . . Fabnet Peak Effective % . | . . . . . . . . . . . . . . . . Robots Rewired . | . . . . . . . . . . . . . . . . Allies Hacked . | . . . . . . . . . . . . . . . . Hacks Repelled . | . . . . . . . . . . . . . . . . Allies | -11 -10 -9 -8 -8 -7 -7 -6 -6 -6 -6 -6 -5 -5 -5 -5 -------- Run | Yrd Mat Mat Mat Sto Fac DSF Fac Was Fac Low Low Fac Upp Upp Zhi Total Allies . | . . . . . . . . . . . . . . . . Largest Group . | . . . . . . . . . . . . . . . . Highest-Rated Group . | . . . . . . . . . . . . . . . . Highest-Rated Ally . | . . . . . . . . . . . . . . . . Total Orders . | . . . . . . . . . . . . . . . . Ally Attacks . | . . . . . . . . . . . . . . . . Total Damage . | . . . . . . . . . . . . . . . . Kills . | . . . . . . . . . . . . . . . . Allies Corrupted . | . . . . . . . . . . . . . . . . Allies Melted . | . . . . . . . . . . . . . . . . Intel | -11 -10 -9 -8 -8 -7 -7 -6 -6 -6 -6 -6 -5 -5 -5 -5 ------- Run | Yrd Mat Mat Mat Sto Fac DSF Fac Was Fac Low Low Fac Upp Upp Zhi Active Infowar (turns) 1422 | . 19 63 72 110 29 47 35 25 119 107 11 256 249 123 157 Sensors 738 | . . . . . 16 38 . . . . . 218 221 123 122 Traps 28 | . . . . . . 28 . . . . . . . . . Decoding 73 | . . . . . . . . . . 12 11 50 . . . T.N.C. 614 | . 19 63 72 110 29 47 35 25 119 95 . . . . . Jamming 512 | . . . . . . . . . . . . 55 177 123 157 Robot Analysis Total 4 | . . . . . . . . . . . . . . . 4 Derelict Logs Recovered 2 | . . . . . . . . . . 1 . . 1 . . Drone Launches . | . . . . . . . . . . . . . . . . Drone Recoveries . | . . . . . . . . . . . . . . . . Decoded 0b10 Intel 1 | . . . . . . . . . . . . 1 . . . Items 1 | . . . . . . . . . . . . 1 . . . Exploration | -11 -10 -9 -8 -8 -7 -7 -6 -6 -6 -6 -6 -5 -5 -5 -5 ------------- Run | Yrd Mat Mat Mat Sto Fac DSF Fac Was Fac Low Low Fac Upp Upp Zhi Turns Passed 1497 | 5 70 63 72 110 29 47 35 25 119 108 11 274 249 123 157 Spaces Moved 3369 | 1 126 115 162 167 65 40 94 68 258 414 36 935 389 333 166 Core 242 | 1 126 115 . . . . . . . . . . . . . Treads . | . . . . . . . . . . . . . . . . Legs 54 | . . . . . . . . . . . . . . . 54 Wheels . | . . . . . . . . . . . . . . . . Hover 30 | . . . . . . 30 . . . . . . . . . Flight 3043 | . . . 162 167 65 10 94 68 258 414 36 935 389 333 112 Fastest Speed 17 | 50 50 50 37 32 32 32 30 23 23 23 23 17 24 27 29 Average Speed 29 | 50 50 50 37 36 32 66 30 28 30 23 23 21 24 28 58 Slowest Speed 120 | 50 50 50 37 37 32 110 30 30 34 23 23 26 27 29 120 Overloaded Moves . | . . . . . . . . . . . . . . . . Propulsion Burnouts . | . . . . . . . . . . . . . . . . Robots Hopped 13 | . . . 2 2 . . . 2 . 3 2 2 . . . Potential Cave-ins . | . . . . . . . . . . . . . . . . Cave-ins Triggered . | . . . . . . . . . . . . . . . . Teleports 1 | . . . . . . . . . . . . . . . 1 Exploration Rate (%) 35 | 2 47 18 18 40 4 43 7 75 11 68 5 39 61 61 62 Regions Visited 15 Branch Regions 6 Pre-discovered Areas 4 | . . . . . . . . . . . . . 1 . 3 Known Exits Taken 5 | . . . . 1 1 . . . . . . 1 1 1 . Unknown Exits Taken 7 | 1 1 1 1 . . . . . 1 1 1 . . . . Scrap Searched 7 | . . . . . . . . . . 3 . . 1 3 . Spaces Dug 31 | . . . . 6 1 . . . 1 3 1 12 3 4 . Terrain Destroyed 31 | . . . . 6 1 . . . 1 3 1 12 3 4 . Melee 31 | . . . . 6 1 . . . 1 3 1 12 3 4 . Projectile . | . . . . . . . . . . . . . . . . AOE . | . . . . . . . . . . . . . . . . Terrain Rammed . | . . . . . . . . . . . . . . . . Walls Destroyed . | . . . . . . . . . . . . . . . . Machines Disabled . | . . . . . . . . . . . . . . . . Actions | -11 -10 -9 -8 -8 -7 -7 -6 -6 -6 -6 -6 -5 -5 -5 -5 --------- Run | Yrd Mat Mat Mat Sto Fac DSF Fac Was Fac Low Low Fac Upp Upp Zhi Total 3726 | 5 131 119 170 185 68 61 101 70 284 417 34 980 535 349 217 Wait 188 | . 2 . . . . 1 . 4 7 1 . 12 140 1 20 Move 3330 | . 125 114 157 162 64 39 94 64 257 407 31 930 388 332 166 Hop 12 | . . . 2 2 . . . 1 . 3 2 2 . . . Pick Up 26 | . 2 4 2 1 1 7 . 1 1 . . 2 . 3 2 Fast Attach 37 | . 1 . 3 4 1 4 . . 6 2 . 5 . 2 9 Attach 16 | 3 . 1 4 . . 2 1 . . . . 3 1 . 1 Detach 8 | . . . . . . . . . 1 . . 2 . . 5 Swap 9 | . . . . . . 1 . . 1 . . 3 2 . 2 Drop 29 | 2 . . 2 1 . 7 . . 4 1 . 5 1 4 2 Fire 1 | . . . . . . . . . 1 . . . . . . Melee 59 | . . . . 15 2 . . . 6 3 1 16 3 7 6 Ram . | . . . . . . . . . . . . . . . . Kick . | . . . . . . . . . . . . . . . . Crush 1 | . 1 . . . . . . . . . . . . . . Escape Stasis 10 | . . . . . . . 6 . . . . . . . 4 Rewire . | . . . . . . . . . . . . . . . . Trap . | . . . . . . . . . . . . . . . . Miscellaneous . | . . . . . . . . . . . . . . . . Route ------- -11/Scrapyard -10/Materials -9/Materials -8/Materials -8/Storage -7/Factory -7/DSF -6/Factory -6/Waste -6/Factory -6/Lower Caves -6/Lower Caves -5/Factory (discovered 2 exits: *Upp x2) -5/Upper Caves -5/Upper Caves -5/Zhirov (discovered 1 exit: [*Pro]) History --------- Turn | Location | Event 1 | -11/Scrapyard | Released all parts (6) 6 | -11/Scrapyard | Discovered new exit (range 0) 6 | -11/Scrapyard | Entered Materials 72 | -10/Materials | Discovered new exit (range 10) 76 | -10/Materials | Entered another Materials area 76 | -9/Materials | Evolved 2 slots: Propulsion x1, Utility x1 137 | -9/Materials | Core integrity fell below 50% 137 | -9/Materials | Discovered new exit (range 4) 139 | -9/Materials | Entered another Materials area 139 | -8/Materials | Evolved 2 slots: Propulsion x1, Utility x1 141 | -8/Materials | Lost 3 parts (3n) 209 | -8/Materials | Discovered new exit (range 5) 211 | -8/Materials | Entered Storage 217 | -8/Storage | Identified exit to Factory 303 | -8/Storage | Build established: Mutant 321 | -8/Storage | Entered Factory 321 | -7/Factory | Evolved 2 slots: Propulsion x1, Utility x1 350 | -7/Factory | Identified exit to DSF 350 | -7/Factory | Entered DSF 371 | -7/DSF | Discovered new exit (range 16) 385 | -7/DSF | Additional patrols routed to DSF 397 | -7/DSF | Entered Factory 397 | -6/Factory | Evolved 2 slots: Power x1, Propulsion x1 432 | -6/Factory | Sucked down chute 432 | -6/Factory | Entered Waste 434 | -6/Waste | Found Prototype Launcher 437 | -6/Waste | Spotted C-40 Crusher 443 | -6/Waste | Spotted C-40 Crusher 443 | -6/Waste | Spotted C-40 Crusher 444 | -6/Waste | Spotted C-40 Crusher 447 | -6/Waste | EMP discharged 452 | -6/Waste | Spotted C-40 Crusher 454 | -6/Waste | Discovered new exit (range 10) 457 | -6/Waste | Entered Factory 573 | -6/Factory | Discovered new exit (range 16) 576 | -6/Factory | Entered Lower Caves 599 | -6/Lower Caves | Attracted the attention of an 0b10 checkpoint 610 | -6/Lower Caves | Spotted B-75 Beast 643 | -6/Lower Caves | Encountered a Warlord checkpoint 644 | -6/Lower Caves | Learned Factory emergency access door positions 681 | -6/Lower Caves | Discovered new exit (range 14) 684 | -6/Lower Caves | Entered another Lower Caves area 686 | -6/Lower Caves | Attracted the attention of an 0b10 checkpoint 693 | -6/Lower Caves | Discovered new exit (range 10) 695 | -6/Lower Caves | Entered Factory 695 | -5/Factory | Evolved 2 slots: Propulsion x2 727 | -5/Factory | Spotted B-75 Beast 795 | -5/Factory | Identified exit to Upper Caves 963 | -5/Factory | Lost 3 parts (1n1u1w) 969 | -5/Factory | Entered Upper Caves 1193 | -5/Upper Caves | Discovered new exit (range 15) 1210 | -5/Upper Caves | Identified exit to Upper Caves 1218 | -5/Upper Caves | Entered another Upper Caves area 1220 | -5/Upper Caves | Attracted the attention of an 0b10 checkpoint 1223 | -5/Upper Caves | Build established: Sprinter 1240 | -5/Upper Caves | Attracted the attention of an 0b10 outpost 1334 | -5/Upper Caves | Discovered new exit (range 16) 1340 | -5/Upper Caves | Identified exit to Zhirov 1341 | -5/Upper Caves | Entered Zhirov 1341 | -5/Zhirov | Discovered new exit (range 3) 1347 | -5/Zhirov | Met Zhirov 1356 | -5/Zhirov | Learned location of Quarantine (-3) 1356 | -5/Zhirov | Learned location of Testing (-2) 1356 | -5/Zhirov | Learned location of Command (-1) 1359 | -5/Zhirov | Zhirov requested help retrieving the SGEMP Prototype 1368 | -5/Zhirov | Found Alien Artifact 1368 | -5/Zhirov | Identified Integrated Dissipator 1368 | -5/Zhirov | Installed Integrated Dissipator, increased core heat dissipation (+20) 1452 | -5/Zhirov | Found Alien Artifact 1474 | -5/Zhirov | Attacked by Zhirov 1476 | -5/Zhirov | Identified Transdimensional Reconstructor 1476 | -5/Zhirov | Warped through subspace 1498 | -5/Zhirov | Self-destructed Last Messages --------------- 01426_ Destroyed Antigrav System. 01426_ Destroyed Imp. Heat Sink. 01426_ Destroyed Tesla Rifle. 01426_ P-70 Sage destroyed. 01428_ Acquired 30 matter. 01432_ Sneak attack on B-86 Titan. 01432_ B-86 Titan destroyed. 01437_ Hvy. Treads fries itself beyond repair. 01438_ Rnf. Fission Core fries itself beyond repair. 01451_ Dropped Exp. Core Shielding. 01452_ Acquired Alien Artifact. 01463_ Zhirov uses his terminal. 01474_ Sneak attack on Zhirov. 01474_ Destroyed Adv. Cryofiber Web. 01474_ Destroyed Prototype Hackware. 01474_ Zhirov: "We're under attack!" 01475_ Held in stasis. 01476_ Identified Transdimensional Reconstructor. 01476_ Warped through subspace. 01493_ Held in stasis. Map ----- +----------------------------------------------------+ | ??????????????????????????##""##???? | | ????????????????????###??##""""##??? | | ????????????######### ##?#""""""#??? | | ????????????#""""""" #?# """" #??? | | ????#######?#" " ### ##?# | | ????#"X"X"#?#" ### | | ????#X X#?#" | | ????#" "#### | | ????#"" ### | | ????#####+#### ### ##?? | | ????????# #?#"" #?# """" #??? | | ????##### #?##" #### ##?#""""""#??? | | ????# + #??#" #??###??##""""##??? | | ????# ###??## #????????##""##???? | | ????#XXX#?????# #?????????#""#????? | | ????#####?????# #?????????????????? | | ???????######## ########??????????? | | ???????#"X # # """"#??????????? | | ???????#" # # """"#??????????? | | ???????#"" # # """#??????????? | | ???????#"" + + ! ""#??????????? | | ???????#"" ""# # """#??????????? | | ???????#"""""# # """"#??????????? | | ???????#"""""# #X""""#??????????? | | ???????########//########??????????? | | ???????#" @ 1 """"#??????????? | | ???????#"" "#??????????? | | ???????#" " " " " "#??????????? | | ???????# "% "% " " "#??????????? | | ???????# " " " " "#??????????? | | ???????##################??????????? | | ???????????????????????????????????? | | ???????????????????????????????????? | | ???????????????????????????????????? | | ???????????????????????????????????? | | ???????????????????????????????????? | | ???????????????????????????????????? | | ???????????????????????????????????? | | ???????????????????????????????????? | | ???????????????????????????????????? | | | | | | | | | | | | | | | | | | | | | +----------------------------------------------------+ Best States ------------- Heat Dissipation 91 Energy Generation 39 Energy Capacity 910 Matter Stores 300 Matter Capacity 300 Sight Range 16 Robot Scan Range 15 Terrain Scan Density 10 Jamming Range 14 Evasion (%) 66 Offensive Hacking 10 Defensive Hacking 22 Item Schematics ----------------- Assault Drone Bay | -5/Zhirov | Free Exp. Heat Sink | -5/Zhirov | Free Exp. Optical Array | -5/Zhirov | Free Imp. Arc Thrower | -5/Zhirov | Free Robot Schematics ------------------ None Fabricated ------------ Nothing Repaired ---------- Nothing Alien Tech Used ----------------- Integrated Dissipator Transdimensional Reconstructor Achievements -------------- None Challenges ------------ None Game ------ Seed GuidedGravityBasin Manual? 0 Play Time 00:36:31 Cumulative 526.7 hours Start 2025.06.06 @ 22:26:12 End 2025.06.07 @ 20:56:26 Sessions 2 Manual Loads 0 Difficulty Rogue Special Mode None Game No. 588 Rogue 588 Adventurer 0 Explorer 0 Win Type - Total 16 Types 10/0/5/1/0/0/0/0/0/0 Lore% 83 Gallery% 82 Achievement% 82 Wizard Run 0 Options --------- Layout 0 ASCII 0 Keyboard 0 Movement Numpad Keybinds 0 Fullscreen 1 Font 18/SmallcapsGlow Map View 76x50 Zoom Use 0% Tactical HUD 1 Map Filters NONE Filters NONE Steam 1 RUN: 2ada67c5-42e2-4904-ae63-ccf59af7e448